bitfinex/quotes_BTCUSD_20250718
["timestamp","ask_amount","ask_price","bid_price","bid_amount"]
[1752809752811,5.81304844,120240.0,120220.0,0.19450397]
[1752809753022,5.47823336,120230.0,120220.0,0.19450397]
[1752809753215,0.47823336,120230.0,120220.0,0.19664397]
[1752809753658,0.08551028,120230.0,120220.0,0.19664397]
[1752809754001,0.48655026,120230.0,120220.0,0.19664397]
[1752809754202,0.48655026,120230.0,120220.0,0.19764397]
[1752809755026,0.09382718,120230.0,120220.0,0.19764397]
[1752809755244,0.48655026,120230.0,120220.0,0.23618592]
[1752809755463,0.48655019,120230.0,120220.0,0.27478592]
[1752809755873,0.49486709,120230.0,120220.0,0.27478592]
[1752809756270,0.40741417,120240.0,120230.0,0.19129916]
[1752809756457,0.01469109,120240.0,120230.0,0.23203916]
[1752809756704,0.14277109,120240.0,120230.0,0.23522916]
[1752809756915,0.14277109,120240.0,120230.0,0.28068689]
[1752809757109,0.01152474,120240.0,120230.0,0.28068689]
[1752809757409,0.15414559,120240.0,120230.0,0.28068689]
[1752809757621,0.02606559,120240.0,120230.0,0.28068689]
[1752809757776,0.15414559,120240.0,120230.0,0.28068689]
[1752809757987,0.15414559,120240.0,120230.0,0.23522916]
[1752809758392,0.54682867,120240.0,120230.0,0.19343916]
[1752809758589,0.57680765,120240.0,120230.0,0.19129916]
[1752809758807,0.58512421,120240.0,120230.0,0.19129916]
[1752809759007,0.56949116,120240.0,120230.0,0.19343916]
[1752809759209,0.56650116,120240.0,120230.0,0.19343916]
[1752809759410,0.57581765,120240.0,120230.0,0.19343916]
[1752809760017,0.03949211,120230.0,120220.0,0.19131431]
[1752809760234,0.52285851,120220.0,120210.0,0.18301201]
[1752809760445,0.55393898,120220.0,120210.0,0.18515201]
[1752809760864,0.56225671,120220.0,120210.0,0.18515201]
[1752809761237,0.55393898,120220.0,120210.0,0.18515201]
[1752809761436,0.56225664,120220.0,120210.0,0.27091163]
[1752809761676,0.56225664,120220.0,120210.0,0.27410163]
[1752809762168,0.55393898,120220.0,120210.0,0.27610163]
[1752809762818,0.56225664,120220.0,120210.0,0.27610163]
[1752809763237,0.57889231,120220.0,120210.0,0.19547071]
[1752809763382,0.58188224,120220.0,120210.0,0.19647071]
[1752809763789,0.74525446,120220.0,120210.0,0.19647071]
[1752809763991,0.15588844,120220.0,120210.0,0.19647071]
[1752809764252,0.54861152,120220.0,120210.0,0.28223033]
[1752809764590,0.55692925,120220.0,120210.0,0.28223033]
[1752809765298,0.55393925,120220.0,120210.0,0.28223033]
[1752809765511,0.54562152,120220.0,120210.0,0.28223033]
[1752809766055,0.55393925,120220.0,120210.0,0.28223033]
[1752809766259,0.54562152,120220.0,120210.0,0.28223033]
[1752809767186,0.53730393,120220.0,120210.0,0.28223033]
[1752809767388,0.54562146,120220.0,120210.0,0.28223033]
[1752809767797,0.15289838,120220.0,120210.0,0.28223033]
[1752809768003,0.54562146,120220.0,120210.0,0.28223033]
[1752809768441,0.41762146,120220.0,120210.0,0.28223033]
[1752809768599,0.54550146,120220.0,120210.0,0.28223033]
[1752809768818,0.55381898,120220.0,120210.0,0.28223033]
[1752809769221,0.54550139,120220.0,120210.0,0.28223033]
[1752809769784,0.16109584,120220.0,120210.0,0.28223033]
[1752809770058,0.53718393,120220.0,120210.0,0.28223033]
[1752809770211,0.53718393,120220.0,120210.0,0.28542033]
[1752809770415,0.54550146,120220.0,120210.0,0.28542033]
[1752809771514,0.55381912,120220.0,120210.0,0.28542033]
[1752809771762,0.54550146,120220.0,120210.0,0.28542033]
[1752809772382,0.53718393,120220.0,120210.0,0.28542033]
[1752809772587,0.54550139,120220.0,120210.0,0.28542033]
[1752809772761,0.53718393,120220.0,120210.0,0.28542033]
[1752809773120,0.53514393,120220.0,120210.0,0.32332033]
[1752809775353,0.40424782,120240.0,120230.0,0.02495133]
[1752809775562,0.09703502,120240.0,120230.0,0.22121397]
[1752809775772,0.01152474,120240.0,120230.0,0.25911397]
[1752809775974,0.13928474,120240.0,120230.0,0.25911397]
[1752809776183,0.15382559,120240.0,120230.0,0.25911397]
[1752809776378,0.14028474,120240.0,120230.0,0.25911397]
[1752809776966,0.14128474,120240.0,120230.0,0.25911397]
[1752809777390,0.15582559,120240.0,120230.0,0.25815497]
[1752809777799,0.02806559,120240.0,120230.0,0.25815497]
[1752809778002,0.15582559,120240.0,120230.0,0.25815497]
[1752809778832,0.15382559,120240.0,120230.0,0.25815497]
[1752809779170,0.15382559,120240.0,120230.0,0.26115497]
[1752809780656,0.15382559,120240.0,120230.0,0.23657016]
[1752809781300,0.54654867,120240.0,120230.0,0.23657016]
[1752809784019,0.15382559,120240.0,120230.0,0.23657016]
[1752809785250,0.12776,120240.0,120230.0,0.21257783]
[1752809785452,0.12776,120240.0,120230.0,0.27988179]
[1752809789422,0.12776,120240.0,120230.0,0.22921184]
[1752809789536,0.52048308,120240.0,120230.0,0.22921184]
[1752809790412,0.45401518,120240.0,120230.0,0.22921184]
[1752809790611,0.12776,120240.0,120230.0,0.21041184]
[1752809791019,0.13607607,120240.0,120230.0,0.21041184]
[1752809791223,0.12776,120240.0,120230.0,0.26246519]
[1752809792048,0.13607607,120240.0,120230.0,0.26246519]
[1752809792448,0.12776,120240.0,120230.0,0.26246519]
[1752809794179,0.13607614,120240.0,120230.0,0.27866519]
[1752809794665,0.12776,120240.0,120230.0,0.27866519]
[1752809796662,0.17556369,120250.0,120240.0,0.19128325]
[1752809796866,0.25492809,120250.0,120240.0,0.19329325]
[1752809797711,0.26640396,120250.0,120240.0,0.19329325]
[1752809798383,0.28140396,120250.0,120240.0,0.19329325]
[1752809798592,0.28140396,120250.0,120240.0,0.19429325]
[1752809798800,0.27308809,120250.0,120240.0,0.19429325]
[1752809799035,0.24814118,120250.0,120240.0,0.19429325]
[1752809799256,0.10538118,120250.0,120240.0,0.24107507]
[1752809799475,0.10538118,120250.0,120240.0,0.66980815]
[1752809799476,5.005e-05,120250.0,120240.0,0.66980815]
[1752809799898,5.005e-05,120250.0,120240.0,0.79752815]
[1752809800278,5.005e-05,120250.0,120240.0,0.66980815]
[1752809800608,5.005e-05,120250.0,120240.0,0.79752815]
[1752809801420,5.005e-05,120250.0,120240.0,1.14804151]
[1752809801663,5.005e-05,120250.0,120240.0,1.27576151]
[1752809801929,5.005e-05,120250.0,120240.0,0.88303843]
[1752809802650,5.005e-05,120250.0,120240.0,0.88403843]
[1752809802878,5.005e-05,120250.0,120240.0,0.88703843]
[1752809803592,5.005e-05,120250.0,120240.0,0.75931843]
[1752809803812,5.005e-05,120250.0,120240.0,0.88703843]
[1752809805793,5.005e-05,120250.0,120240.0,0.40880507]
[1752809806002,5.005e-05,120250.0,120240.0,0.36202325]
[1752809806953,5.005e-05,120250.0,120240.0,0.21780325]
[1752809807157,0.00217005,120250.0,120240.0,0.32902325]
[1752809808864,5.005e-05,120250.0,120240.0,0.32902325]
[1752809809067,5.005e-05,120250.0,120240.0,0.41478287]
[1752809810731,0.00537005,120250.0,120240.0,0.19628325]
[1752809810958,0.15029005,120250.0,120240.0,0.19628325]
[1752809811785,0.13309005,120250.0,120240.0,0.19628325]
[1752809812005,0.13309005,120250.0,120240.0,0.19840325]
[1752809812212,0.12985005,120250.0,120240.0,0.19840325]
[1752809812429,0.15129005,120250.0,120240.0,0.19628325]
[1752809812673,0.57042858,120250.0,120240.0,0.19628325]
[1752809812958,0.18602102,120250.0,120240.0,0.19628325]
[1752809813143,0.19433675,120250.0,120240.0,0.19628325]
[1752809813339,0.19433668,120250.0,120240.0,0.19628325]
[1752809814020,0.68711089,120250.0,120240.0,0.19328325]
[1752809814244,0.69542676,120250.0,120240.0,0.19328325]
[1752809814466,0.70374256,120250.0,120240.0,0.19428325]
[1752809814746,0.30270361,120250.0,120240.0,0.19428325]
[1752809814968,0.87006333,120250.0,120240.0,0.19428332]
[1752809815198,0.87006333,120250.0,120240.0,0.19128332]
[1752809815423,0.87006333,120250.0,120240.0,0.19959953]
[1752809815424,0.69542711,120250.0,120240.0,0.19959953]
[1752809816091,0.2777567,120250.0,120240.0,0.23702595]
[1752809816320,0.12038118,120250.0,120240.0,0.23914595]
[1752809816601,0.22990118,120250.0,120240.0,0.23914595]
[1752809816833,0.28677215,120250.0,120240.0,0.19959953]
[1752809817288,0.29508788,120250.0,120240.0,0.19959953]
[1752809817508,0.28677215,120250.0,120240.0,0.19959953]
[1752809817729,0.29508788,120250.0,120240.0,0.19959953]
[1752809818185,0.28677215,120250.0,120240.0,0.19959953]
[1752809818415,0.28677208,120250.0,120240.0,0.23702595]
[1752809819105,0.28677208,120250.0,120240.0,0.23802595]
[1752809819551,0.28677208,120250.0,120240.0,0.23702595]
[1752809819782,0.28677208,120250.0,120240.0,0.19959953]
[1752809821162,0.27845656,120250.0,120240.0,0.19959953]
[1752809821367,0.28677208,120250.0,120240.0,0.19959953]
[1752809822010,0.3034034,120250.0,120240.0,0.19959953]
[1752809822429,0.74304306,120250.0,120240.0,0.18296704]
[1752809822647,0.86260754,120250.0,120240.0,0.18296704]
[1752809822859,0.0496732,120240.0,120230.0,0.1829817]
[1752809823110,0.07886962,120240.0,120230.0,0.18298212]
[1752809823317,0.06547692,120240.0,120230.0,0.19129902]
[1752809823523,0.05716085,120240.0,120230.0,0.19129902]
[1752809823737,0.03836085,120240.0,120230.0,0.19129902]
[1752809824150,0.01986085,120240.0,120230.0,0.19441902]
[1752809824375,0.01662085,120240.0,120230.0,0.19441902]
[1752809824996,0.01662085,120240.0,120230.0,0.19753902]
[1752809826686,0.03706085,120240.0,120230.0,0.19229902]
[1752809828364,0.03706085,120240.0,120230.0,0.19329902]
[1752809828562,0.01986085,120240.0,120230.0,0.19541902]
[1752809828975,0.01662085,120240.0,120230.0,0.19541902]
[1752809831110,0.03766085,120240.0,120230.0,0.19541902]
[1752809831339,0.04597699,120240.0,120230.0,0.19541902]
[1752809831553,0.04597699,120240.0,120230.0,0.19329902]
[1752809831766,0.0715932,120240.0,120230.0,0.19329902]
[1752809832204,0.46431621,120240.0,120230.0,0.19329902]
[1752809832414,0.456,120240.0,120230.0,0.19329902]
[1752809832591,0.46431614,120240.0,120230.0,0.19329902]
[1752809833910,0.06327692,120240.0,120230.0,0.19329902]
[1752809834118,0.03766085,120240.0,120230.0,0.19329902]
[1752809834524,0.03766085,120240.0,120230.0,0.19541902]
[1752809835261,0.04597692,120240.0,120230.0,0.19541902]
[1752809835480,0.16671983,120240.0,120230.0,0.19329902]
[1752809835688,0.57607596,120240.0,120230.0,0.22978909]
[1752809835902,0.57607589,120240.0,120230.0,0.19329902]
[1752809836320,0.73409381,120240.0,120230.0,0.18498219]
[1752809836521,0.56775982,120240.0,120230.0,0.20161606]
[1752809836730,0.74241044,120240.0,120230.0,0.18498219]
[1752809836939,0.73409416,120240.0,120230.0,0.18498219]
[1752809837362,0.56776017,120240.0,120230.0,0.20161606]
[1752809838000,0.73409416,120240.0,120230.0,0.20161606]
[1752809838893,0.73409416,120240.0,120230.0,0.002]
[1752809838894,1.14494237,120240.0,120230.0,0.002]
[1752809839124,6.38790447,120240.0,120230.0,0.002]
[1752809839346,5.99518139,120240.0,120230.0,0.002]
[1752809839802,6.38790447,120240.0,120230.0,0.002]
[1752809840009,6.38790447,120240.0,120230.0,0.001]
[1752809840439,6.38890447,120240.0,120230.0,0.001]
[1752809840638,0.20886515,120230.0,120220.0,0.18299759]
[1752809840851,5.68906851,120230.0,120220.0,0.18299759]
[1752809841026,0.69199851,120230.0,120220.0,0.18299759]
[1752809841234,0.30759261,120230.0,120220.0,0.19131546]
[1752809841481,0.30759261,120230.0,120220.0,0.24455191]
[1752809841482,0.32422704,120230.0,120220.0,0.24455191]
[1752809841671,0.53396758,120230.0,120220.0,0.24455142]
[1752809841886,0.66168758,120230.0,120220.0,0.24455142]
[1752809842099,0.67000483,120230.0,120220.0,0.24455142]
[1752809842328,0.04854085,120240.0,120230.0,0.19129916]
[1752809842548,0.22974113,120240.0,120230.0,0.2113234]
[1752809842780,0.22974113,120240.0,120230.0,0.19334916]
[1752809842781,0.08748028,120240.0,120230.0,0.19334916]
[1752809842997,0.78533452,120250.0,120240.0,0.19128325]
[1752809842998,0.38392668,120250.0,120240.0,0.19128325]
[1752809843203,0.21818033,120250.0,120240.0,0.19333325]
[1752809843447,0.23188137,120250.0,120240.0,0.19333325]
[1752809843649,0.24642222,120250.0,120240.0,0.19333325]
[1752809843858,0.27073795,120250.0,120240.0,0.19333325]
[1752809844083,0.26535222,120250.0,120240.0,0.19333325]
[1752809844552,0.27366788,120250.0,120240.0,0.19333325]
[1752809844789,0.27466788,120250.0,120240.0,0.19333325]
[1752809845009,0.28298368,120250.0,120240.0,0.19128325]
[1752809845233,0.68302263,120250.0,120240.0,0.19128325]
[1752809845470,0.71367622,120250.0,120240.0,0.17465062]
[1752809845689,0.83308035,120250.0,120240.0,0.17465068]
[1752809845906,0.05585692,120240.0,120230.0,0.19129895]
[1752809846114,0.51906028,120240.0,120230.0,0.19129895]
[1752809846330,0.53862291,120240.0,120230.0,0.19129895]
[1752809846547,0.10202113,120240.0,120230.0,0.19334895]
[1752809846766,0.01454085,120240.0,120230.0,0.24881]
[1752809846987,0.14226085,120240.0,120230.0,0.26481]
[1752809847211,0.14226085,120240.0,120230.0,0.22883895]
[1752809853227,0.15057706,120240.0,120230.0,0.19643895]
[1752809853746,0.15057699,120240.0,120230.0,0.19643895]
[1752809853953,0.15254699,120240.0,120230.0,0.19643895]
[1752809854306,0.15254692,120240.0,120230.0,0.19643895]
[1752809854746,0.61176304,120240.0,120230.0,0.19961641]
[1752809854955,0.77990029,120240.0,120230.0,0.19961641]
[1752809855179,0.57251642,120240.0,120230.0,0.19961641]
[1752809855405,0.58083291,120240.0,120230.0,0.19961641]
[1752809855825,0.42048021,120240.0,120230.0,0.20166641]
[1752809856062,0.54527021,120240.0,120230.0,0.20166641]
[1752809856715,0.55358621,120240.0,120230.0,0.20166641]
[1752809856931,0.55358621,120240.0,120230.0,0.20475641]
[1752809857157,0.54527,120240.0,120230.0,0.20475641]
[1752809857394,0.53695393,120240.0,120230.0,0.20475641]
[1752809857610,0.14423085,120240.0,120230.0,0.20475641]
[1752809857831,0.14226085,120240.0,120230.0,0.20475641]
[1752809858389,0.14226085,120240.0,120230.0,0.23978405]
[1752809858776,0.14226085,120240.0,120230.0,0.25578405]
[1752809859035,0.14226085,120240.0,120230.0,0.22075641]
[1752809859490,0.14226085,120240.0,120230.0,0.23825641]
[1752809859707,0.01454085,120240.0,120230.0,0.23825641]
[1752809860155,0.14226085,120240.0,120230.0,0.23825641]
[1752809860375,0.14226085,120240.0,120230.0,0.31799051]
[1752809860842,0.01454085,120240.0,120230.0,0.31799051]
[1752809861058,0.14226085,120240.0,120230.0,0.31799051]
[1752809861518,0.14226085,120240.0,120230.0,0.23825641]
[1752809862831,5.005e-05,120250.0,120240.0,0.20728325]
[1752809863060,0.12777005,120250.0,120240.0,0.22643325]
[1752809863289,0.12777005,120250.0,120240.0,0.22952325]
[1752809863527,0.1423109,120250.0,120240.0,0.22952325]
[1752809864441,0.0145909,120250.0,120240.0,0.29564366]
[1752809864646,0.1423109,120250.0,120240.0,0.68836674]
[1752809865070,0.12777005,120250.0,120240.0,0.68836674]
[1752809865280,0.1423109,120250.0,120240.0,0.68836674]
[1752809865498,0.0145909,120250.0,120240.0,0.68836674]
[1752809865720,0.1423109,120250.0,120240.0,0.68836674]
[1752809866401,0.1423109,120250.0,120240.0,0.29564366]
[1752809867496,0.1423109,120250.0,120240.0,0.22952325]
[1752809872800,0.0145909,120250.0,120240.0,0.22952325]
[1752809873014,0.1423109,120250.0,120240.0,0.22952325]
[1752809876355,0.1423109,120250.0,120240.0,0.19642325]
[1752809876566,0.1422709,120250.0,120240.0,0.19642325]
[1752809876798,0.1474309,120250.0,120240.0,0.19333325]
[1752809877437,0.1444209,120250.0,120240.0,0.19333325]
[1752809877876,0.1444209,120250.0,120240.0,0.19630325]
[1752809878591,0.1422709,120250.0,120240.0,0.21039432]
[1752809878792,0.0145909,120250.0,120240.0,0.6190174]
[1752809878995,0.0145909,120250.0,120240.0,0.6362174]
[1752809878996,0.1422709,120250.0,120240.0,0.6362174]
[1752809881438,5.005e-05,120250.0,120240.0,0.6362174]
[1752809881655,0.1422709,120250.0,120240.0,0.6362174]
[1752809882093,5.005e-05,120250.0,120240.0,0.65556019]
[1752809882310,0.21742,120280.0,120270.0,0.19123553]
[1752809882531,0.32785006,120280.0,120270.0,0.23074145]
[1752809882751,0.20232006,120280.0,120270.0,0.23074145]
[1752809882984,0.36365091,120280.0,120270.0,0.23074145]
[1752809883438,0.37296429,120280.0,120270.0,0.23074145]
[1752809883859,0.3812778,120280.0,120270.0,0.23074145]
[1752809884061,0.37296429,120280.0,120270.0,0.23074145]
[1752809884339,0.3812778,120280.0,120270.0,0.23074145]
[1752809884542,0.3812778,120280.0,120270.0,0.22865145]
[1752809886263,0.38959145,120280.0,120270.0,0.22865145]
[1752809886472,0.3812778,120280.0,120270.0,0.22865145]
[1752809886914,0.37296429,120280.0,120270.0,0.22865145]
[1752809887153,0.37296429,120280.0,120270.0,0.23074145]
[1752809887154,0.35385436,120280.0,120270.0,0.23074145]
[1752809887380,0.34554091,120280.0,120270.0,0.23074145]
[1752809887592,0.35385429,120280.0,120270.0,0.19629553]
[1752809887809,0.21571091,120280.0,120270.0,0.58901861]
[1752809888016,0.34339091,120280.0,120270.0,0.62251861]
[1752809888669,0.34339091,120280.0,120270.0,0.60631861]
[1752809888891,0.34339091,120280.0,120270.0,0.19629553]
[1752809889119,0.34339091,120280.0,120270.0,0.27513976]
[1752809890070,0.21571091,120280.0,120270.0,0.27513976]
[1752809890299,0.34339091,120280.0,120270.0,0.30773976]
[1752809891052,0.34339091,120280.0,120270.0,0.19629553]
[1752809891277,0.36257608,120280.0,120270.0,0.19629553]
[1752809894076,0.23489608,120280.0,120270.0,0.19629553]
[1752809894280,0.36257608,120280.0,120270.0,0.19629553]
[1752809895291,0.16285608,120280.0,120270.0,0.19629553]
[1752809896244,0.16285608,120280.0,120270.0,0.27679976]
[1752809896456,0.16285608,120280.0,120270.0,0.30959976]
[1752809896673,0.16289608,120280.0,120270.0,0.22909553]
[1752809896882,0.14835523,120280.0,120270.0,0.62181861]
[1752809897988,0.12917006,120280.0,120270.0,0.62281861]
[1752809898208,0.00145006,120280.0,120270.0,0.62281861]
[1752809898428,0.12917006,120280.0,120270.0,0.70339284]
[1752809898708,0.12817006,120280.0,120270.0,0.70339284]
[1752809899169,0.12817006,120280.0,120270.0,0.70439284]
[1752809900044,1e-08,120280.0,120270.0,0.70439284]
[1752809901350,0.1469974,120290.0,120280.0,0.19121964]
[1752809901584,0.16153825,120290.0,120280.0,0.27898926]
[1752809901792,0.14432085,120290.0,120280.0,0.27898926]
[1752809903653,0.14432085,120290.0,120280.0,0.28216926]
[1752809903917,0.14226085,120290.0,120280.0,0.28216926]
[1752809904366,0.14226085,120290.0,120280.0,0.19640964]
[1752809904777,0.16160371,120290.0,120280.0,0.19640964]
[1752809905830,0.16366371,120290.0,120280.0,0.19640964]
[1752809908271,0.03594371,120290.0,120280.0,0.19640964]
[1752809908483,0.16656371,120290.0,120280.0,0.19121964]
[1752809908692,0.20106371,120290.0,120280.0,0.19121964]
[1752809910174,0.18386371,120290.0,120280.0,0.19121964]
[1752809910462,0.18386371,120290.0,120280.0,0.19322964]
[1752809910674,0.16656371,120290.0,120280.0,0.19322964]
[1752809911793,0.16358371,120290.0,120280.0,0.19322964]
[1752809912418,0.03388371,120290.0,120280.0,0.19640964]
[1752809912639,0.03388371,120290.0,120280.0,0.31606926]
[1752809912846,0.03388371,120290.0,120280.0,0.70879234]
[1752809913058,0.01934286,120290.0,120280.0,0.70879234]
[1752809913282,0.35948,120310.0,120300.0,0.19118784]
[1752809913501,0.35998085,120310.0,120300.0,0.19319784]
[1752809913721,0.50722798,120310.0,120300.0,0.19319784]
[1752809913955,0.47977527,120310.0,120300.0,0.17456351]
[1752809914168,1.00013835,120310.0,120300.0,0.19118784]
[1752809914381,1.00217835,120310.0,120300.0,0.19118784]
[1752809914599,0.94410229,120310.0,120300.0,0.19118784]
[1752809914809,0.81442229,120310.0,120300.0,0.19118784]
[1752809915026,0.94406229,120310.0,120300.0,0.19118784]
[1752809915238,0.96068531,120310.0,120300.0,0.19118784]
[1752809915446,0.96068524,120310.0,120300.0,0.19118784]
[1752809915879,0.96168524,120310.0,120300.0,0.19118784]
[1752809916093,0.94506229,120310.0,120300.0,0.19118784]
[1752809916376,1.02222134,120310.0,120300.0,0.22859443]
[1752809916811,1.03053257,120310.0,120300.0,0.22859443]
[1752809917231,1.03884394,120310.0,120300.0,0.22859443]
[1752809917435,1.02222134,120310.0,120300.0,0.19118784]
[1752809917870,1.03053264,120310.0,120300.0,0.19118784]
[1752809918737,1.03053257,120310.0,120300.0,0.19118784]
[1752809919158,1.03884394,120310.0,120300.0,0.19118784]
[1752809919368,0.38058798,120310.0,120300.0,0.22859443]
[1752809919576,0.42299928,120310.0,120300.0,0.19118784]
[1752809919785,0.54428798,120310.0,120300.0,0.19118784]
[1752809921252,0.52748798,120310.0,120300.0,0.19118784]
[1752809922579,0.92021106,120310.0,120300.0,0.19118784]
[1752809922803,0.94534236,120310.0,120300.0,0.19118784]
[1752809923210,0.93703106,120310.0,120300.0,0.19118784]
[1752809924064,0.80751106,120310.0,120300.0,0.22859443]
[1752809924272,0.54418798,120310.0,120300.0,0.22859443]
[1752809924478,0.52728798,120310.0,120300.0,0.22859443]
[1752809924684,0.53559928,120310.0,120300.0,0.19118784]
[1752809924898,0.83204531,120310.0,120300.0,0.19118784]
[1752809925109,0.96979703,120310.0,120300.0,0.18287578]
[1752809925338,0.97810882,120310.0,120300.0,0.19118784]
[1752809925573,0.96979703,120310.0,120300.0,0.19118784]
[1752809926587,0.83204531,120310.0,120300.0,0.19118784]
[1752809926805,0.96148531,120310.0,120300.0,0.19118784]
[1752809926944,0.96148524,120310.0,120300.0,0.19118784]
[1752809929009,0.95317373,120310.0,120300.0,0.19118784]
[1752809929283,0.81542236,120310.0,120300.0,0.19118784]
[1752809929482,0.94478236,120310.0,120300.0,0.19118784]
[1752809931205,0.93647106,120310.0,120300.0,0.19118784]
[1752809931433,0.95309373,120310.0,120300.0,0.19118784]
[1752809933171,0.96140531,120310.0,120300.0,0.19118784]
[1752809933349,0.95309373,120310.0,120300.0,0.19118784]
[1752809934602,0.95293366,120310.0,120300.0,0.19118784]
[1752809935625,0.96124517,120310.0,120300.0,0.19118784]
[1752809935784,0.95293366,120310.0,120300.0,0.19118784]
[1752809936137,0.96124517,120310.0,120300.0,0.19118784]
[1752809936428,0.95293366,120310.0,120300.0,0.19118784]
[1752809937726,0.9612451,120310.0,120300.0,0.19118784]
[1752809938158,0.9612451,120310.0,120300.0,0.18651312]
[1752809941261,0.96955661,120310.0,120300.0,0.18651312]
[1752809941606,0.97758826,120310.0,120300.0,0.18651312]
[1752809942112,0.96927661,120310.0,120300.0,0.18651312]
[1752809942324,0.97758826,120310.0,120300.0,0.18651312]
[1752809942534,1.08379344,120310.0,120300.0,0.17456351]
[1752809942740,0.91755622,120310.0,120300.0,0.19950039]
[1752809942951,1.22098523,120310.0,120300.0,0.20781245]
[1752809943181,1.02150134,120310.0,120300.0,0.20781245]
[1752809943347,0.46609826,120310.0,120300.0,0.20995245]
[1752809943584,0.59493826,120310.0,120300.0,0.20995245]
[1752809946879,0.59195826,120310.0,120300.0,0.20995245]
[1752809947087,0.50438798,120310.0,120300.0,0.24328245]
[1752809947506,0.48478085,120310.0,120300.0,0.24328245]
[1752809951176,0.48470085,120310.0,120300.0,0.24328245]
[1752809951395,0.48470085,120310.0,120300.0,0.27870237]
[1752809951396,0.01594085,120310.0,120300.0,0.27870237]
[1752809951629,0.14478085,120310.0,120300.0,0.24328245]
[1752809951879,0.01594085,120310.0,120300.0,0.24328245]
[1752809952088,0.14478085,120310.0,120300.0,0.24328245]
[1752809953479,0.16238428,120310.0,120300.0,0.24328245]
[1752809953681,0.03354428,120310.0,120300.0,0.28423594]
[1752809953885,0.16234428,120310.0,120300.0,0.28423594]
[1752809954270,0.16234428,120310.0,120300.0,0.24328245]
[1752809954731,0.16242428,120310.0,120300.0,0.24328245]
[1752809955410,0.01900343,120310.0,120300.0,0.63600553]
[1752809955619,0.01900343,120310.0,120300.0,0.24328245]
[1752809955870,0.14788343,120310.0,120300.0,0.24328245]
[1752809956332,0.14788343,120310.0,120300.0,0.31961375]
[1752809956789,0.14688343,120310.0,120300.0,0.44849375]
[1752809957452,0.14688343,120310.0,120300.0,0.37216245]
[1752809958568,0.14688343,120310.0,120300.0,0.37316245]
[1752809958809,0.14688343,120310.0,120300.0,0.37416245]
[1752809959015,0.1292,120310.0,120300.0,0.76680553]
[1752809959195,0.1292,120310.0,120300.0,0.63800553]
[1752809959425,0.1292,120310.0,120300.0,0.72376515]
[1752809959628,0.1292,120310.0,120300.0,0.85256515]
[1752809960148,0.0004,120310.0,120300.0,0.72376515]
[1752809960371,0.0004,120310.0,120300.0,0.85256515]
[1752809960577,0.0004,120310.0,120300.0,0.72376515]
[1752809960803,0.0004,120310.0,120300.0,0.85252515]
[1752809961655,0.01815344,120310.0,120300.0,0.85252515]
[1752809966158,0.01815344,120310.0,120300.0,0.72376515]
[1752809966402,0.01815344,120310.0,120300.0,0.85240515]
[1752809966854,0.01815344,120310.0,120300.0,0.72376515]
[1752809967120,0.0004,120310.0,120300.0,0.93783543]
[1752809967567,0.0004,120310.0,120300.0,0.80927543]
[1752809967781,0.0004,120310.0,120300.0,0.93783543]
[1752809969040,0.0004,120310.0,120300.0,0.98605811]
[1752809969241,0.0004,120310.0,120300.0,0.54511235]
[1752809969480,0.0004,120310.0,120300.0,0.98605811]
[1752809970132,0.0004,120310.0,120300.0,0.98601811]
[1752809971857,0.0004,120310.0,120300.0,1.42696387]
[1752809972322,0.0004,120310.0,120300.0,0.98601811]
[1752809973856,0.0004,120310.0,120300.0,0.86997849]
[1752809974082,0.0004,120310.0,120300.0,0.74153849]
[1752809974283,0.0004,120310.0,120300.0,0.42899273]
[1752809974497,0.00236,120310.0,120300.0,0.74153849]
[1752809974697,0.00236,120310.0,120300.0,0.86993849]
[1752809975311,0.00236,120310.0,120300.0,0.74153849]
[1752809975529,0.00236,120310.0,120300.0,0.95573811]
[1752809975948,0.0004,120310.0,120300.0,0.95573811]
[1752809977443,0.0361,120310.0,120300.0,0.20981245]
[1752809977653,0.65319279,120310.0,120300.0,0.20981245]
[1752809977866,1.15943001,120310.0,120300.0,0.20150046]
[1752809978093,0.99319279,120310.0,120300.0,0.20981217]
[1752809978376,0.96825791,120310.0,120300.0,0.20981217]
[1752809978632,0.51900085,120310.0,120300.0,0.20981217]
[1752809981838,0.53554366,120310.0,120300.0,0.20981217]
[1752809982061,0.52723215,120310.0,120300.0,0.20981217]
[1752809982319,0.52723208,120310.0,120300.0,0.20981217]
[1752809983092,0.51892085,120310.0,120300.0,0.20981217]
[1752809983310,0.52723208,120310.0,120300.0,0.20981217]
[1752809983747,0.51892085,120310.0,120300.0,0.20981217]
[1752809987223,0.39064085,120310.0,120300.0,0.20981217]
[1752809987428,0.51880085,120310.0,120300.0,0.20981217]
[1752809988719,0.39064085,120310.0,120300.0,0.20981217]
[1752809988924,0.51880085,120310.0,120300.0,0.20981217]
[1752809999625,0.50370085,120310.0,120300.0,0.20981217]
[1752810000274,0.48310085,120310.0,120300.0,0.25292563]
[1752810000511,0.14282085,120310.0,120300.0,0.25292563]
[1752810000726,0.14282085,120310.0,120300.0,0.21501217]
[1752810001278,0.16322085,120310.0,120300.0,0.20981217]
[1752810002162,0.17952085,120310.0,120300.0,0.20981217]
[1752810002984,0.62062619,120310.0,120300.0,0.20981217]
[1752810003638,0.03534085,120310.0,120300.0,0.20981217]
[1752810003867,0.14822085,120310.0,120300.0,0.21186217]
[1752810004105,0.02034085,120310.0,120300.0,0.21186217]
[1752810004318,0.14822085,120310.0,120300.0,0.21186217]
[1752810005957,0.16362085,120310.0,120300.0,0.20981217]
[1752810006164,0.49314619,120310.0,120300.0,0.20981217]
[1752810006336,0.62933742,120310.0,120300.0,0.20981217]
[1752810006542,0.62102619,120310.0,120300.0,0.20981217]
[1752810007987,0.60472619,120310.0,120300.0,0.20981217]
[1752810010845,0.16362085,120310.0,120300.0,0.20981217]
[1752810011275,0.60472619,120310.0,120300.0,0.20981217]
[1752810012172,0.58932619,120310.0,120300.0,0.21186217]
[1752810013308,0.14822085,120310.0,120300.0,0.21186217]
[1752810013517,0.58932619,120310.0,120300.0,0.21186217]
[1752810013730,0.14822085,120310.0,120300.0,0.21186217]
[1752810013946,0.58932619,120310.0,120300.0,0.21186217]
[1752810015685,0.60472619,120310.0,120300.0,0.21186217]
[1752810017030,0.49314619,120310.0,120300.0,0.20981217]
[1752810017252,0.62102619,120310.0,120300.0,0.20981217]
[1752810017672,0.62933742,120310.0,120300.0,0.20981217]
[1752810017882,0.51808016,120310.0,120300.0,0.20981217]
[1752810018095,0.73978209,120310.0,120300.0,0.20150011]
[1752810018530,0.73978202,120310.0,120300.0,0.20981217]
[1752810018746,0.57865647,120310.0,120300.0,0.20981217]
[1752810018971,0.69023647,120310.0,120300.0,0.24741863]
[1752810019203,0.69023647,120310.0,120300.0,0.20981217]
[1752810019406,0.67483647,120310.0,120300.0,0.20981217]
[1752810020824,0.69854777,120310.0,120300.0,0.20981217]
[1752810021043,0.27254243,120310.0,120300.0,0.20981217]
[1752810021704,0.6729567,120310.0,120300.0,0.20981217]
[1752810022508,0.68126814,120310.0,120300.0,0.20981217]
[1752810022938,0.6729567,120310.0,120300.0,0.20981217]
[1752810023811,0.66464533,120310.0,120300.0,0.20981217]